bitfinex-derivatives/quotes_BTCF0:USTF0_20250822
["timestamp","ask_amount","ask_price","bid_price","bid_amount"]
[1755879042527,1.22888,116600.0,116590.0,1.68327204]
[1755879042733,0.002,116600.0,116590.0,1.68327204]
[1755879042937,0.002,116600.0,116590.0,1.16298889]
[1755879043136,1.4159346,116620.0,116600.0,0.282]
[1755879043340,1.43418571,116620.0,116610.0,0.38773]
[1755879043735,1.4159346,116620.0,116610.0,0.38773]
[1755879044042,1.33018,116620.0,116610.0,0.38773]
[1755879044636,1.01415375,116630.0,116620.0,0.37665]
[1755879044637,1.33175,116630.0,116620.0,0.37665]
[1755879044941,1.78688,116640.0,116630.0,0.37665]
[1755879045140,1.89088936,116640.0,116630.0,0.37665]
[1755879045343,1.93820936,116640.0,116630.0,0.33273]
[1755879046036,2.45849251,116640.0,116630.0,0.07405]
[1755879046238,2.45849251,116640.0,116620.0,0.07505]
[1755879046239,0.3301071,116630.0,116620.0,0.07505]
[1755879046540,1.8284128,116640.0,116620.0,0.37765]
[1755879046739,1.71762702,116640.0,116630.0,0.37765]
[1755879046935,1.61611702,116640.0,116630.0,0.89793315]
[1755879047243,1.61611702,116640.0,116630.0,0.37765]
[1755879047244,1.44313682,116640.0,116630.0,0.37765]
[1755879047438,1.48855682,116640.0,116630.0,0.37765]
[1755879047839,2.00883997,116640.0,116630.0,0.07505]
[1755879048143,1.48455682,116640.0,116630.0,0.07505]
[1755879048843,1.4622798,116640.0,116630.0,0.17272]
[1755879049044,1.4662798,116640.0,116630.0,0.17272]
[1755879049247,1.4662798,116640.0,116630.0,0.33273]
[1755879049436,1.4662798,116640.0,116630.0,0.17272]
[1755879049634,1.4692798,116640.0,116630.0,0.07505]
[1755879049840,1.98956295,116640.0,116630.0,0.001]
[1755879050237,1.4692798,116640.0,116630.0,0.001]
[1755879050437,1.4692798,116640.0,116630.0,0.33239]
[1755879051847,1.4692798,116640.0,116630.0,0.17238]
[1755879052037,1.98956295,116640.0,116630.0,0.17238]
[1755879052542,1.4692798,116640.0,116630.0,0.33239]
[1755879052736,1.4692798,116640.0,116630.0,0.17238]
[1755879054244,0.2306398,116640.0,116630.0,0.37282]
[1755879054439,1.4529198,116640.0,116630.0,0.89310315]
[1755879054638,1.5126298,116640.0,116630.0,0.89310315]
[1755879054837,1.5126298,116640.0,116630.0,0.37282]
[1755879055350,2.07833295,116640.0,116630.0,0.17238]
[1755879055644,1.5580498,116640.0,116630.0,0.17238]
[1755879056037,2.07833295,116640.0,116630.0,0.07371]
[1755879056237,1.9188498,116640.0,116630.0,0.001]
[1755879056437,2.43913295,116640.0,116630.0,0.001]
[1755879056748,0.6965698,116640.0,116630.0,0.07371]
[1755879056936,2.43465295,116640.0,116630.0,0.17238]
[1755879057140,2.43465295,116640.0,116630.0,0.07371]
[1755879057336,2.43465295,116640.0,116630.0,0.001]
[1755879057736,1.9143698,116640.0,116630.0,0.001]
[1755879058141,1.93270176,116640.0,116630.0,0.001]
[1755879058337,1.93270176,116640.0,116630.0,0.07371]
[1755879058547,1.93270176,116640.0,116630.0,0.33239]
[1755879058739,1.57190176,116640.0,116630.0,0.36031]
[1755879058939,1.5535698,116640.0,116630.0,0.36031]
[1755879059141,1.57190718,116640.0,116630.0,0.36031]
[1755879059745,2.45299033,116640.0,116630.0,0.36031]
[1755879059935,0.32213718,116640.0,116630.0,0.44617]
[1755879060134,1.60136634,116640.0,116630.0,0.96645315]
[1755879060448,0.007,116640.0,116630.0,0.98362]
[1755879060651,0.2306363,116640.0,116630.0,0.57361]
[1755879060838,0.2903463,116640.0,116630.0,0.73362]
[1755879061147,0.0927363,116640.0,116630.0,0.73362]
[1755879061541,0.2903463,116640.0,116630.0,0.73362]
[1755879062252,0.2903463,116640.0,116630.0,1.25390315]
[1755879062448,0.2903463,116640.0,116630.0,0.98362]
[1755879063351,0.2863463,116640.0,116630.0,0.73362]
[1755879063545,0.3317663,116640.0,116630.0,0.73362]
[1755879063744,0.2833463,116640.0,116630.0,0.73262]
[1755879064050,0.2833463,116640.0,116630.0,0.73362]
[1755879064051,0.2843463,116640.0,116630.0,0.73362]
[1755879064355,0.001,116640.0,116630.0,1.25390315]
[1755879064554,0.004,116640.0,116630.0,1.50290315]
[1755879064753,0.005,116640.0,116630.0,1.50390315]
[1755879065045,0.005,116640.0,116630.0,0.98362]
[1755879065353,0.005,116640.0,116630.0,0.73362]
[1755879065541,0.005,116640.0,116630.0,1.25390315]
[1755879065744,0.005,116640.0,116630.0,1.33964695]
[1755879066240,0.005,116640.0,116630.0,1.25390315]
[1755879066436,0.001,116640.0,116630.0,1.25390315]
[1755879066648,0.0887359,116640.0,116630.0,0.73362]
[1755879066952,0.0887359,116640.0,116630.0,1.25390315]
[1755879067142,0.04237,116650.0,116630.0,0.46047]
[1755879067353,0.56321,116660.0,116650.0,0.23272]
[1755879067544,0.56321,116660.0,116650.0,0.96117124]
[1755879067545,0.01833424,116660.0,116650.0,0.96117124]
[1755879067744,0.08104424,116660.0,116650.0,1.32197124]
[1755879067944,0.20972193,116670.0,116650.0,1.45883124]
[1755879068151,0.06070486,116670.0,116660.0,0.89210315]
[1755879068354,1.75315,116690.0,116660.0,0.73262]
[1755879068653,2.36017847,116690.0,116680.0,0.33139]
[1755879068949,1.83989532,116690.0,116680.0,0.07271]
[1755879069143,2.42288847,116690.0,116680.0,0.07271]
[1755879069345,2.35261847,116690.0,116680.0,0.07271]
[1755879069547,0.3365367,116680.0,116670.0,0.07271]
[1755879069746,0.35486782,116680.0,116670.0,0.33139]
[1755879070349,0.87515097,116680.0,116670.0,0.33139]
[1755879070545,0.87515097,116680.0,116670.0,0.07271]
[1755879070744,0.42802782,116680.0,116670.0,0.07265]
[1755879070944,0.10382,116680.0,116670.0,0.57325]
[1755879071148,0.26298,116680.0,116670.0,0.57325]
[1755879071546,0.26361,116680.0,116670.0,0.73326]
[1755879071852,0.26561,116680.0,116670.0,0.76943844]
[1755879072455,0.87159995,116680.0,116670.0,0.76943844]
[1755879072761,0.4215868,116680.0,116670.0,0.84214844]
[1755879072950,0.4215868,116680.0,116670.0,0.48134844]
[1755879073252,0.4199568,116680.0,116670.0,0.40799844]
[1755879073551,0.4199568,116680.0,116670.0,0.76879844]
[1755879073759,0.4189568,116680.0,116670.0,0.76779844]
[1755879073951,0.4209568,116680.0,116670.0,0.76879844]
[1755879074450,0.17709,116680.0,116670.0,0.76879844]
[1755879074760,0.07427,116680.0,116670.0,1.28908159]
[1755879075150,0.07427,116680.0,116670.0,0.76879844]
[1755879075352,0.07427,116680.0,116670.0,1.53908159]
[1755879075552,0.07427,116680.0,116670.0,1.01879844]
[1755879075950,0.07427,116680.0,116670.0,0.76879844]
[1755879075951,0.94167995,116680.0,116670.0,0.76879844]
[1755879076147,0.4193968,116680.0,116670.0,0.76879844]
[1755879076346,2.2488968,116680.0,116670.0,0.07371]
[1755879076554,2.76917995,116680.0,116670.0,0.001]
[1755879076949,0.0857213,116660.0,116650.0,0.61414124]
[1755879077147,1.22822445,116660.0,116650.0,0.47470559]
[1755879077348,1.47822445,116660.0,116650.0,0.06906809]
[1755879077557,0.1863059,116640.0,116630.0,0.06622]
[1755879077858,0.1863059,116640.0,116630.0,0.36512]
[1755879077859,1.5259359,116640.0,116630.0,0.36512]
[1755879078855,0.2092809,116650.0,116640.0,0.26446]
[1755879079153,0.3098509,116650.0,116640.0,0.72592]
[1755879079357,0.83013405,116650.0,116640.0,0.06622]
[1755879079757,0.3098509,116650.0,116640.0,0.32278]
[1755879079949,2.04633405,116650.0,116640.0,0.16688]
[1755879080151,1.5260509,116650.0,116640.0,0.06622]
[1755879080562,2.04733405,116650.0,116640.0,0.06622]
[1755879080751,1.5270509,116650.0,116640.0,0.36512]
[1755879081064,1.5290509,116650.0,116640.0,0.36612]
[1755879081353,1.5290509,116650.0,116640.0,0.06722]
[1755879081556,2.04933405,116650.0,116640.0,0.06722]
[1755879081756,1.5290509,116650.0,116640.0,0.06722]
[1755879081957,2.04933405,116650.0,116640.0,0.06722]
[1755879082375,1.5290509,116650.0,116640.0,0.32378]
[1755879082558,1.5290509,116650.0,116640.0,0.36612]
[1755879082861,1.54728275,116650.0,116640.0,0.21022]
[1755879083057,1.5290509,116650.0,116640.0,0.21022]
[1755879083255,1.5290509,116650.0,116640.0,0.16788]
[1755879083454,2.04933405,116650.0,116640.0,0.16788]
[1755879083656,1.5290509,116650.0,116640.0,0.16788]
[1755879083856,2.04933405,116650.0,116640.0,0.06722]
[1755879084555,2.04933405,116650.0,116640.0,0.32378]
[1755879084765,2.04933405,116650.0,116640.0,0.10956]
[1755879084950,2.04933405,116650.0,116640.0,0.06722]
[1755879085153,1.5290509,116650.0,116640.0,0.06722]
[1755879085457,2.04933405,116650.0,116640.0,0.06722]
[1755879085658,2.04933405,116650.0,116640.0,1e-07]
[1755879085659,3.19866685,116650.0,116640.0,1e-07]
[1755879085862,0.1863132,116630.0,116620.0,0.33532]
[1755879086064,1.8842732,116630.0,116620.0,0.36512]
[1755879086457,1.5234732,116630.0,116620.0,0.36512]
[1755879087159,1.5234732,116630.0,116620.0,0.20922]
[1755879087361,2.04375635,116630.0,116620.0,0.06722]
[1755879087955,1.5234732,116630.0,116620.0,0.32378]
[1755879088160,1.5244732,116630.0,116620.0,0.36812]
[1755879088464,1.5244732,116630.0,116620.0,0.72892]
[1755879089163,1.5244732,116630.0,116620.0,0.36812]
[1755879089564,1.5244732,116630.0,116620.0,0.72892]
[1755879089769,0.0867432,116630.0,116620.0,1.24920315]
[1755879090062,1.4239432,116630.0,116620.0,0.72892]
[1755879090263,0.3103532,116630.0,116620.0,0.72892]
[1755879090764,0.3103532,116630.0,116620.0,0.57302]
[1755879090957,0.83063635,116630.0,116620.0,0.53068]
[1755879091152,0.83063635,116630.0,116620.0,0.06922]
[1755879091353,0.3103532,116630.0,116620.0,0.72892]
[1755879094266,0.0867432,116630.0,116620.0,0.72892]
[1755879094665,0.83063635,116630.0,116620.0,0.06922]
[1755879095459,1.08063635,116630.0,116620.0,0.06922]
[1755879095867,0.5603532,116630.0,116620.0,0.06922]
[1755879096069,1.44143635,116630.0,116620.0,0.003]
[1755879096865,0.9211532,116630.0,116620.0,0.003]
[1755879097066,0.9211532,116630.0,116620.0,0.06922]
[1755879097271,1.5259132,116630.0,116620.0,0.36812]
[1755879097968,2.04619635,116630.0,116620.0,0.21222]
[1755879098374,2.04619635,116630.0,116620.0,0.39542]
[1755879099066,1.5259132,116630.0,116620.0,0.39542]
[1755879099267,2.04619635,116630.0,116620.0,0.39542]
[1755879099468,1.5259132,116630.0,116620.0,0.39542]
[1755879099669,1.5259132,116630.0,116620.0,0.44315]
[1755879099968,1.7759132,116630.0,116620.0,0.16988]
[1755879100167,1.7759132,116630.0,116620.0,0.06922]
[1755879100370,2.29619635,116630.0,116620.0,0.06922]
[1755879101868,2.29619635,116630.0,116620.0,0.003]
[1755879102265,2.65699635,116630.0,116620.0,0.003]
[1755879102673,2.65699635,116630.0,116590.0,0.51120867]
[1755879102674,0.1863349,116600.0,116590.0,0.68689867]
[1755879102862,1.5154949,116600.0,116590.0,0.91541474]
[1755879103270,1.5154949,116600.0,116590.0,0.98163474]
[1755879103760,1.5154949,116600.0,116590.0,0.71873209]
[1755879104176,2.03577805,116600.0,116590.0,0.87501209]
[1755879104368,2.03577805,116600.0,116590.0,0.71873209]
[1755879104671,2.39657805,116600.0,116590.0,0.329493]
[1755879104883,2.64757805,116600.0,116590.0,0.07103091]
[1755879105060,2.64757805,116600.0,116590.0,0.07503091]
[1755879105866,2.64757805,116600.0,116590.0,0.0134]
[1755879106267,2.64757805,116600.0,116570.0,0.10856]
[1755879106268,0.2909323,116590.0,116570.0,0.10856]
[1755879106475,0.2909323,116590.0,116570.0,0.16493]
[1755879106476,1.4988196,116580.0,116570.0,0.16493]
[1755879106668,2.37990275,116580.0,116570.0,0.06622]
[1755879106868,1.8596196,116580.0,116570.0,0.06622]
[1755879107069,2.37990275,116580.0,116570.0,0.06622]
[1755879107672,1.8596196,116580.0,116570.0,0.32121]
[1755879107872,1.8596196,116580.0,116570.0,0.39188111]
[1755879108077,1.8606196,116580.0,116570.0,0.39688111]
[1755879108375,1.8606196,116580.0,116570.0,0.42978111]
[1755879108680,1.8606196,116580.0,116570.0,0.54618743]
[1755879108876,1.8606196,116580.0,116570.0,0.54318743]
[1755879109170,1.4998196,116580.0,116570.0,0.54018743]
[1755879109374,1.3967896,116580.0,116570.0,1.42127058]
[1755879109568,0.0857649,116600.0,116580.0,0.09871]
[1755879109569,0.0857684,116600.0,116580.0,0.09871]
[1755879109765,1.5173658,116600.0,116590.0,0.36163]
[1755879109976,1.5173658,116600.0,116590.0,0.06644]
[1755879110271,2.03764895,116600.0,116590.0,0.06644]
[1755879110477,1.5173658,116600.0,116590.0,0.16515]
[1755879110666,1.5173658,116600.0,116590.0,0.32143]
[1755879110863,1.5173658,116600.0,116590.0,0.36163]
[1755879111072,1.5173658,116600.0,116590.0,0.20535]
[1755879111375,0.1879021,116590.0,116580.0,0.06744]
[1755879111677,0.2919321,116590.0,116580.0,0.36263]
[1755879111873,0.81121525,116590.0,116580.0,0.20635]
[1755879112181,0.81121525,116590.0,116580.0,0.06744]
[1755879112389,0.2909321,116590.0,116580.0,0.06744]
[1755879112580,0.2909321,116590.0,116580.0,0.06644]
[1755879112874,0.81121525,116590.0,116580.0,0.06644]
[1755879113673,0.2919321,116590.0,116580.0,0.06844]
[1755879113874,0.81221525,116590.0,116580.0,0.06844]
[1755879114478,0.81221525,116590.0,116580.0,0.06944]
[1755879114877,0.6527321,116590.0,116580.0,0.003]
[1755879115079,0.6527321,116590.0,116580.0,0.06944]
[1755879116579,1.17301525,116590.0,116580.0,0.06944]
[1755879116881,1.17301525,116590.0,116580.0,0.16815]
[1755879117078,0.81221525,116590.0,116580.0,0.39253]
[1755879117274,0.6527321,116590.0,116580.0,0.39253]
[1755879117675,1.17301525,116590.0,116580.0,0.39253]
[1755879117980,0.6527321,116590.0,116580.0,0.43891]
[1755879118368,0.2919321,116590.0,116580.0,0.43891]
[1755879119973,0.2897445,116590.0,116580.0,0.43891]
[1755879120272,0.81002765,116590.0,116580.0,0.43891]
[1755879120679,0.2897445,116590.0,116580.0,0.43891]
[1755879120878,0.81002765,116590.0,116580.0,0.28263]
[1755879121181,0.81002765,116590.0,116580.0,0.43891]
[1755879121381,0.2897445,116590.0,116580.0,0.43891]
[1755879121780,0.81002765,116590.0,116580.0,0.43891]
[1755879122182,0.2897445,116590.0,116580.0,0.28263]
[1755879122374,0.81002765,116590.0,116580.0,0.28263]
[1755879122574,1.17082765,116590.0,116580.0,0.09734]
[1755879122774,0.6505445,116590.0,116580.0,0.19605]
[1755879122973,1.17082765,116590.0,116580.0,0.06944]
[1755879125081,1.1898154,116590.0,116580.0,0.06944]
[1755879125381,0.66953225,116590.0,116580.0,0.06944]
[1755879125576,1.1898154,116590.0,116580.0,0.06944]
[1755879126876,1.1898154,116590.0,116580.0,0.16815]
[1755879127078,1.1898154,116590.0,116580.0,0.06944]
[1755879127281,1.1888154,116590.0,116580.0,0.06644]
[1755879127577,1.1928154,116590.0,116580.0,0.16615]
[1755879127784,0.67253225,116590.0,116580.0,0.16615]
[1755879128175,1.1918154,116590.0,116580.0,0.19405]
[1755879128682,1.1938154,116590.0,116580.0,0.19405]
[1755879128882,1.1938154,116590.0,116580.0,0.39053]
[1755879129182,1.1938154,116590.0,116580.0,0.06744]
[1755879129984,0.67353225,116590.0,116580.0,0.16615]
[1755879130178,0.31273225,116590.0,116580.0,0.35033]
[1755879130386,1.1938154,116590.0,116580.0,0.39053]
[1755879130585,0.59094775,116590.0,116580.0,0.09534]
[1755879130880,1.1112309,116590.0,116580.0,0.09534]
[1755879131081,0.67671985,116590.0,116580.0,0.09534]
[1755879131286,1.197003,116590.0,116580.0,0.19405]
[1755879131487,0.67671985,116590.0,116580.0,0.19405]
[1755879131786,0.836203,116590.0,116580.0,0.19405]
[1755879131993,0.836203,116590.0,116580.0,0.23425]
[1755879132187,0.836203,116590.0,116580.0,0.79771]
[1755879132188,0.31591985,116590.0,116580.0,0.79771]
[1755879132384,0.31591985,116590.0,116580.0,0.43691]
[1755879133783,0.836203,116590.0,116580.0,0.43691]
[1755879133980,0.10975985,116590.0,116580.0,0.43691]
[1755879134194,0.31106985,116590.0,116580.0,0.43691]
[1755879136287,0.31106985,116590.0,116580.0,0.42471]
[1755879136592,0.831353,116590.0,116580.0,0.42471]
[1755879136780,0.31106985,116590.0,116580.0,0.42471]
[1755879136978,0.731503,116590.0,116580.0,0.42471]
[1755879137183,1.38273985,116590.0,116580.0,0.42471]
[1755879137383,1.48258985,116590.0,116580.0,0.42471]
[1755879137980,1.29696775,116590.0,116580.0,1.03077215]
[1755879138380,1.19550775,116590.0,116580.0,1.64157215]
[1755879138987,1.19550775,116590.0,116580.0,1.121289]
[1755879139593,0.17178,116610.0,116600.0,0.17167]
[1755879139899,1.23736,116610.0,116600.0,0.8692242]
[1755879140079,1.23776,116610.0,116600.0,1.1192242]
[1755879140287,1.23776,116610.0,116600.0,0.58346]
[1755879140288,1.5608868,116610.0,116600.0,0.58346]
[1755879140492,2.14512995,116610.0,116600.0,0.78346]
[1755879140787,2.14512995,116610.0,116600.0,0.23691]
[1755879141097,1.6308468,116610.0,116600.0,0.23791]
[1755879141294,2.15112995,116610.0,116600.0,0.13771]
[1755879141498,1.6308468,116610.0,116600.0,0.06624]
[1755879141699,2.15112995,116610.0,116600.0,0.33796]
[1755879141890,2.15694995,116610.0,116600.0,0.37963]
[1755879142197,1.6366668,116610.0,116600.0,0.42366]
[1755879142590,1.6396668,116610.0,116600.0,0.42366]
[1755879143783,1.6963868,116610.0,116600.0,0.42366]
[1755879143991,1.6324268,116610.0,116600.0,0.42366]
[1755879145490,1.6978368,116610.0,116600.0,0.42366]
[1755879145793,0.11121,116610.0,116600.0,1.1202242]
[1755879146100,0.07932,116610.0,116600.0,1.1202242]
[1755879146298,0.07932,116610.0,116600.0,1.55474315]
[1755879146599,0.33735,116610.0,116600.0,1.03446]
[1755879146799,0.33735,116610.0,116600.0,1.55474315]
[1755879147097,0.34541,116610.0,116600.0,1.03446]
[1755879147501,0.5452669,116610.0,116600.0,0.78446]
[1755879147697,0.13104,116610.0,116600.0,0.78446]
[1755879147906,0.33735,116610.0,116600.0,0.78446]
[1755879148397,1.50331,116610.0,116600.0,0.78446]
[1755879148998,0.00503,116630.0,116600.0,0.78446]
[1755879149199,0.4659321,116630.0,116620.0,0.49515]
[1755879149710,0.4659321,116630.0,116620.0,0.63938]
[1755879149891,0.4659321,116630.0,116620.0,0.27858]
[1755879150090,0.4659321,116630.0,116620.0,0.42266]
[1755879150688,0.2389296,116620.0,116610.0,1.30374315]
[1755879151002,0.4659396,116620.0,116610.0,0.63938]
[1755879151198,0.4659396,116620.0,116610.0,0.78346]
[1755879151501,0.4659396,116620.0,116610.0,0.53918]
[1755879151798,0.48500798,116620.0,116610.0,0.63938]
[1755879151996,0.48500798,116620.0,116610.0,0.78346]
[1755879152393,0.40125838,116620.0,116610.0,0.78446]
[1755879152900,0.48700798,116620.0,116610.0,0.78446]
[1755879153203,0.48800798,116620.0,116610.0,0.78446]
[1755879153504,0.48900798,116620.0,116610.0,0.78446]
[1755879154196,1.00929113,116620.0,116610.0,0.54018]
[1755879154505,1.00929113,116620.0,116610.0,0.42704]
[1755879154901,1.00929113,116620.0,116610.0,0.06624]
[1755879155210,0.38019,116600.0,116590.0,0.63938]
[1755879155398,0.38019,116600.0,116590.0,0.53918]
[1755879155399,2.06639315,116600.0,116590.0,0.53918]
[1755879155599,2.06639315,116600.0,116590.0,0.78346]
[1755879155899,1.54611,116600.0,116590.0,0.78346]
[1755879156103,2.06639315,116600.0,116590.0,0.78346]
[1755879156400,1.54611,116600.0,116590.0,0.78346]
[1755879157005,1.54711,116600.0,116590.0,0.78846]
[1755879158094,1.4817,116600.0,116590.0,0.8742316]
[1755879158303,1.4817,116600.0,116590.0,0.78846]
[1755879158607,1.54711,116600.0,116590.0,0.78846]
[1755879159401,1.47767,116600.0,116590.0,1.30474315]
[1755879159704,1.54911,116600.0,116590.0,0.64038]
[1755879160000,2.06939315,116600.0,116590.0,0.49851]
[1755879160298,1.54911,116600.0,116590.0,0.1012]
[1755879160504,1.90991,116600.0,116590.0,0.42366]
[1755879162804,1.90991,116600.0,116590.0,0.27958]
[1755879163004,2.43019315,116600.0,116590.0,0.27958]
[1755879163200,2.43199315,116600.0,116590.0,0.13771]
[1755879163403,0.22662,116600.0,116590.0,0.69876]
[1755879163595,0.16121,116600.0,116590.0,0.64038]
[1755879163800,0.30149,116600.0,116590.0,0.78736]
[1755879164095,0.31458,116600.0,116590.0,0.78736]
[1755879164918,0.4003443,116600.0,116590.0,0.78736]
[1755879165501,0.2469743,116600.0,116590.0,0.78736]
[1755879165803,0.4003443,116600.0,116590.0,0.78736]
[1755879167704,0.31458,116600.0,116590.0,0.78736]
[1755879168610,0.33384724,116600.0,116590.0,0.78736]
[1755879169001,0.41961144,116600.0,116590.0,0.78736]
[1755879169310,0.48448144,116600.0,116590.0,0.78736]
[1755879170208,0.4652142,116600.0,116590.0,0.78736]
[1755879170809,1.00477367,116600.0,116590.0,0.78736]
[1755879171310,1.00477367,116600.0,116590.0,0.42656]
[1755879171614,1.36557367,116600.0,116590.0,0.42656]
[1755879172000,1.36557367,116600.0,116590.0,0.27958]
[1755879172305,1.36557367,116600.0,116590.0,0.42656]
[1755879172506,1.00477367,116600.0,116590.0,0.27958]
[1755879172801,1.00477367,116600.0,116590.0,0.13771]
[1755879173001,1.00477367,116600.0,116590.0,0.09368]
[1755879173403,1.36557367,116600.0,116590.0,0.001]
[1755879173603,1.34629735,116600.0,116590.0,0.001]
[1755879173809,1.59629735,116600.0,116590.0,0.001]
[1755879173995,1.0760142,116600.0,116590.0,0.001]
[1755879174195,1.59629735,116600.0,116590.0,0.001]
[1755879174598,0.9226442,116600.0,116590.0,0.37737]
[1755879174806,0.62945,116600.0,116590.0,0.42091]
[1755879175809,1.59629725,116600.0,116590.0,0.42091]
[1755879176202,1.0760141,116600.0,116590.0,0.42091]
[1755879176403,1.59629725,116600.0,116590.0,0.27393]
[1755879176910,1.59629725,116600.0,116590.0,0.42091]
[1755879176911,1.09529773,116600.0,116590.0,0.42091]
[1755879177299,1.61558088,116600.0,116590.0,0.42091]
[1755879177613,1.61558088,116600.0,116590.0,0.27393]
[1755879177907,1.61558088,116600.0,116590.0,0.42091]
[1755879177908,1.58382673,116600.0,116590.0,0.42091]
[1755879178104,2.16897988,116600.0,116590.0,0.42091]
[1755879178308,2.00949673,116600.0,116590.0,0.42091]
[1755879178506,1.4760431,116600.0,116590.0,0.42091]
[1755879178708,1.49806577,116600.0,116590.0,0.8674805]
[1755879178907,0.32883577,116600.0,116590.0,0.8674805]
[1755879179215,1.42327,116600.0,116590.0,0.8674805]
[1755879179412,1.42327,116600.0,116590.0,0.78171]
[1755879179712,1.52831706,116600.0,116590.0,0.78171]
[1755879179899,1.44255396,116600.0,116590.0,1.1174804]
[1755879180298,0.12374396,116600.0,116590.0,1.1174804]
[1755879180499,0.2917,116630.0,116620.0,0.2524884]
[1755879180710,0.18936703,116630.0,116620.0,1.38674155]
[1755879181011,1.18496984,116650.0,116640.0,0.0857337]
[1755879181206,1.18496984,116650.0,116640.0,1.38672685]
[1755879181405,1.18496984,116650.0,116640.0,0.8664437]
[1755879181715,1.18496984,116650.0,116640.0,1.38672685]
[1755879181908,1.18496984,116650.0,116640.0,0.8664437]
[1755879182099,0.01896984,116650.0,116640.0,1.63672685]
[1755879182300,1.18484984,116650.0,116640.0,1.63672685]
[1755879182504,1.27257614,116650.0,116640.0,1.63772685]
[1755879182719,1.27257614,116650.0,116640.0,1.55199315]
[1755879182904,2.05763929,116650.0,116640.0,0.27393]
[1755879183101,2.41843929,116650.0,116640.0,0.02873]
[1755879183306,1.89815614,116650.0,116640.0,0.1242]
[1755879183515,2.41843929,116650.0,116640.0,0.1242]
[1755879183714,2.05763929,116650.0,116640.0,0.02873]
[1755879183909,2.41843929,116650.0,116640.0,0.001]
[1755879184116,1.89815614,116650.0,116640.0,0.001]
[1755879184413,2.41843929,116650.0,116640.0,0.001]
[1755879184719,2.41843929,116650.0,116640.0,0.06714]
[1755879185409,2.14815614,116650.0,116640.0,0.001]
[1755879185606,2.66843929,116650.0,116640.0,0.001]
[1755879185915,1.15287614,116650.0,116640.0,0.001]
[1755879186109,2.84139929,116650.0,116640.0,0.001]
[1755879186305,2.07111614,116650.0,116640.0,0.001]
[1755879186512,2.59139929,116650.0,116640.0,0.001]
[1755879186704,2.07111614,116650.0,116640.0,0.001]
[1755879186904,2.84139929,116650.0,116640.0,0.001]
[1755879187119,0.1706,116630.0,116620.0,0.06614]
[1755879187320,0.43338,116620.0,116610.0,0.27293]
[1755879187519,0.43338,116620.0,116610.0,0.44637123]
[1755879188816,0.43338,116620.0,116610.0,0.80717123]
[1755879189418,0.95366315,116620.0,116610.0,0.3608]
[1755879189610,0.43338,116610.0,116600.0,0.42694]
[1755879189917,2.12086315,116610.0,116600.0,0.09387]
[1755879190112,2.19081241,116610.0,116600.0,0.09387]
[1755879190313,1.67052926,116610.0,116600.0,0.09387]
[1755879190513,2.19081241,116610.0,116600.0,0.09387]
[1755879190917,2.19081241,116610.0,116590.0,0.61397]
[1755879191115,0.28001,116600.0,116590.0,0.42694]
[1755879191313,0.18024,116590.0,116580.0,0.69530963]
[1755879191513,1.44681,116590.0,116580.0,0.41991]
[1755879191705,1.60018,116590.0,116580.0,0.41991]
[1755879192217,1.60018,116590.0,116580.0,0.44639984]
[1755879192624,1.60018,116590.0,116580.0,0.27293]
[1755879192819,1.60018,116590.0,116580.0,0.13741]
[1755879193013,0.43338,116580.0,116570.0,0.79874963]
[1755879193314,0.43338,116580.0,116570.0,0.84228963]
[1755879193828,0.43338,116580.0,116570.0,0.86843164]
[1755879195121,0.43338,116580.0,116570.0,0.86943164]
[1755879195817,0.43338,116580.0,116570.0,0.44705201]
[1755879196021,0.43438,116580.0,116570.0,0.80811201]
[1755879196719,0.5201592,116580.0,116570.0,1.32839516]
[1755879197023,0.5201592,116580.0,116570.0,0.89389851]
[1755879197222,0.5201592,116580.0,116570.0,0.95547814]
[1755879197422,0.5201592,116580.0,116570.0,1.47576129]
[1755879197626,0.001,116580.0,116570.0,1.66418166]
[1755879197821,0.1816452,116600.0,116590.0,0.07361]
[1755879198016,1.3473252,116600.0,116590.0,1.20833315]
[1755879198217,1.6011852,116600.0,116590.0,0.78641]
[1755879199125,1.6021852,116600.0,116590.0,0.78641]
[1755879199423,0.5054991,116590.0,116580.0,0.45561]
[1755879199624,0.5054991,116590.0,116580.0,0.8721891]
[1755879200330,0.41972,116590.0,116580.0,0.8721891]
[1755879200620,1.32994,116590.0,116580.0,1.39247225]
[1755879200824,1.47502,116590.0,116580.0,1.39247225]
[1755879201011,1.32994,116590.0,116580.0,0.8721891]
[1755879201211,1.47602,116590.0,116580.0,0.8741891]
[1755879201416,1.33094,116590.0,116580.0,0.8741891]
[1755879201712,1.47602,116590.0,116580.0,0.8741891]
[1755879201916,1.6705716,116590.0,116580.0,0.78841]
[1755879202116,1.6705716,116590.0,116580.0,0.64417]
[1755879202624,1.6705716,116590.0,116580.0,0.3628]
[1755879203327,1.6705716,116590.0,116580.0,0.74215]
[1755879203626,1.6705716,116590.0,116580.0,0.45761]
[1755879204519,1.6705716,116590.0,116580.0,0.09681]
[1755879204825,1.6705716,116590.0,116580.0,0.002]
[1755879206131,2.44085475,116590.0,116580.0,0.002]
[1755879206326,2.80165475,116590.0,116580.0,0.002]
[1755879206825,2.80245475,116590.0,116580.0,0.002]
[1755879207214,0.0857864,116570.0,116560.0,0.4702]
[1755879207419,1.6635464,116570.0,116560.0,0.77437963]
[1755879207616,1.6635464,116570.0,116560.0,0.62171502]
[1755879207825,1.6635464,116570.0,116560.0,0.59591]
[1755879208030,1.6635464,116570.0,116560.0,0.65748963]
[1755879208322,0.5055138,116560.0,116550.0,0.91584032]
[1755879208526,0.5035138,116560.0,116550.0,0.84798963]
[1755879209333,0.5035138,116560.0,116550.0,0.51718963]
[1755879209839,0.5035138,116560.0,116550.0,0.39898963]
[1755879210025,0.8643138,116560.0,116550.0,0.18243792]
[1755879210539,0.5055211,116550.0,116540.0,0.64217]
[1755879210730,1.6600411,116550.0,116540.0,0.7037499]
[1755879210930,1.6570411,116550.0,116540.0,0.7037499]
[1755879211129,1.6550411,116550.0,116540.0,0.8479899]
[1755879211332,1.6550411,116550.0,116540.0,0.73038581]
[1755879211628,1.6550411,116550.0,116540.0,0.6618099]
[1755879211629,1.6510411,116550.0,116540.0,0.6618099]
[1755879211824,1.6510411,116550.0,116540.0,0.8080499]